bitfinex-derivatives/quotes_ETHF0:USTF0_20240831
["timestamp","ask_amount","ask_price","bid_price","bid_amount"]
[1725090206216,3.9632,2523.3,2523.2,0.58509656]
[1725090206719,3.9632,2523.3,2523.2,0.86250656]
[1725090206919,3.9632,2523.3,2523.2,0.58509656]
[1725090208118,3.9632,2523.3,2523.1,1.27741]
[1725090208318,1.3550939,2523.4,2523.2,0.585063]
[1725090208619,1.3550939,2523.4,2523.1,1.27741]
[1725090208814,1.3550939,2523.4,2523.2,0.58506571]
[1725090209014,1.3550939,2523.4,2523.1,1.27741]
[1725090209217,1.3550939,2523.4,2523.2,0.58506471]
[1725090209414,1.3550939,2523.4,2523.1,1.27741]
[1725090209617,1.0777039,2523.4,2523.2,0.86246995]
[1725090209819,1.3550939,2523.4,2523.1,1.27741]
[1725090210019,1.3550939,2523.4,2523.2,0.58506295]
[1725090210219,1.3550939,2523.4,2523.1,1.27741]
[1725090210521,1.3550939,2523.4,2523.2,0.58502275]
[1725090210816,1.3550939,2523.4,2523.2,0.27741]
[1725090211023,5.0409039,2523.4,2523.2,0.27741]
[1725090211923,5.3182939,2523.4,2523.1,1.27741]
[1725090212119,1.3550939,2523.4,2523.2,0.5849571]
[1725090212320,1.3550939,2523.4,2523.1,1.27741]
[1725090212526,1.3550939,2523.4,2523.2,0.58495898]
[1725090212824,1.3550939,2523.4,2523.1,1.27741]
[1725090213127,1.3550939,2523.4,2523.2,0.58495988]
[1725090213327,1.3550939,2523.4,2523.1,1.27741]
[1725090214013,1.3550939,2523.4,2523.2,0.27741]
[1725090214434,5.3182939,2523.4,2523.2,0.27741]
[1725090214622,5.0409039,2523.4,2523.2,0.27741]
[1725090215724,5.3182939,2523.4,2523.2,0.27741]
[1725090218422,5.0409039,2523.4,2523.1,1.27741]
[1725090218735,1.0777039,2523.4,2523.1,1.27741]
[1725090218926,0.2774,2523.3,2523.1,1.27741]
[1725090219121,1.3550939,2523.4,2523.1,1.27741]
[1725090219927,0.2774,2523.3,2523.1,1.27741]
[1725090224622,0.2774,2523.3,2523.1,1.0]
[1725090225436,0.27741,2523.2,2523.1,1.0]
[1725090225836,0.27741,2523.2,2523.1,1.58493715]
[1725090226535,0.27741,2523.2,2523.1,1.0]
[1725090227628,0.27744,2522.9,2522.7,0.27746]
[1725090227837,0.3876,2522.8,2522.7,0.27746]
[1725090228134,0.66505,2522.8,2522.7,0.58506635]
[1725090228341,4.62905,2522.8,2522.7,0.58506635]
[1725090228524,4.62906,2522.8,2522.6,1.38237]
[1725090228724,3.2078,2523.1,2522.7,1.86265806]
[1725090228939,3.48522,2523.1,2522.9,0.27744]
[1725090229140,0.27742,2523.1,2523.0,0.7388]
[1725090229342,0.27742,2523.1,2523.0,1.1049]
[1725090229343,3.48522,2523.1,2523.0,1.1049]
[1725090229643,7.44842,2523.1,2523.0,1.1049]
[1725090229834,3.48522,2523.1,2523.0,1.1049]
[1725090230737,3.2078,2523.1,2523.0,1.38233]
[1725090230936,0.27742,2523.2,2523.0,1.38233]
[1725090231139,4.2078039,2523.4,2523.0,1.1049]
[1725090231438,3.1593939,2523.4,2523.0,2.1049]
[1725090231638,3.1593939,2523.4,2523.1,0.27742]
[1725090231933,0.2774,2523.3,2523.1,0.27742]
[1725090236746,0.3639,2523.2,2523.1,0.27742]
[1725090237544,0.64131,2523.2,2523.0,1.38232]
[1725090238143,0.3639,2523.2,2523.1,0.27742]
[1725090239637,0.64131,2523.2,2523.0,1.38232]
[1725090239833,0.64131,2523.2,2523.1,0.86239815]
[1725090240238,0.64131,2523.2,2523.1,0.27742]
[1725090240239,0.3639,2523.2,2523.1,0.27742]
[1725090240438,3.8666,2523.3,2523.1,0.86239224]
[1725090240634,3.8666,2523.3,2523.1,0.27742]
[1725090242643,0.6588,2523.3,2523.1,0.27742]
[1725090243345,0.6588,2523.3,2523.2,0.58520992]
[1725090245751,0.2774,2523.3,2523.2,0.58520992]
[1725090245942,0.2774,2523.3,2523.2,1.43614607]
[1725090246451,0.2774,2523.3,2523.2,0.58520992]
[1725090246651,0.2774,2523.3,2523.2,1.43614279]
[1725090246948,0.2774,2523.3,2523.2,0.58520992]
[1725090247349,4.2406,2523.3,2523.2,0.58520992]
[1725090247549,4.6023,2523.3,2523.2,1.43615022]
[1725090247953,0.27741,2523.2,2523.0,1.38232]
[1725090248163,0.27741,2523.2,2523.1,1.43614981]
[1725090251542,3.2078,2523.2,2523.1,1.71356981]
[1725090257959,0.2774,2523.3,2523.1,1.71356981]
[1725090258157,0.2774,2523.3,2523.2,1.43612275]
[1725090258460,3.4852,2523.3,2523.2,1.43612275]
[1725090259455,0.2774,2523.3,2523.2,1.43612275]
[1725090259654,3.4852,2523.3,2523.2,1.43612275]
[1725090260478,3.8414,2523.3,2523.2,0.58520191]
[1725090260651,3.8414,2523.3,2523.2,1.43613305]
[1725090260847,3.8414,2523.3,2523.2,0.58520191]
[1725090261367,3.8414,2523.3,2523.1,0.27742]
[1725090261761,3.8414,2523.3,2523.2,0.5852134]
[1725090264766,3.8414,2523.3,2523.0,1.38232]
[1725090264767,0.27741,2523.2,2523.0,1.38232]
[1725090264968,0.27741,2523.2,2523.1,1.43616085]
[1725090266451,0.27741,2523.2,2523.1,1.71358085]
[1725090267866,0.27741,2523.2,2523.1,1.71352201]
[1725090268067,0.27741,2523.2,2523.1,0.27742]
[1725090268366,0.27741,2523.2,2523.1,1.7135355]
[1725090268958,0.6336,2523.3,2523.1,1.7135355]
[1725090269158,0.6336,2523.3,2523.2,1.4361155]
[1725090269859,0.6336,2523.3,2523.2,1.7135255]
[1725090270063,0.2774,2523.3,2523.2,1.7135255]
[1725090270261,1.2773939,2523.4,2523.2,1.7135255]
[1725090270475,1.2773939,2523.4,2523.3,0.58519912]
[1725090270765,1.2773939,2523.4,2523.3,0.94619912]
[1725090271358,1.2773939,2523.4,2523.3,0.94618775]
[1725090272358,1.2773939,2523.4,2523.3,1.7970775]
[1725090272565,1.2773939,2523.4,2523.3,0.94618775]
[1725090273067,1.2773939,2523.4,2523.3,0.361]
[1725090273267,1.2773939,2523.4,2523.3,0.94619238]
[1725090273465,5.2405939,2523.4,2523.3,0.94619238]
[1725090273670,1.2773939,2523.4,2523.3,0.94619238]
[1725090273867,5.2405939,2523.4,2523.3,0.361]
[1725090274070,5.2405939,2523.4,2523.3,0.94619097]
[1725090275487,5.2405939,2523.4,2523.3,0.94620276]
[1725090276267,5.2405939,2523.4,2523.3,0.361]
[1725090276469,5.2405939,2523.4,2523.3,0.94620288]
[1725090276670,5.2405939,2523.4,2523.3,0.58520288]
[1725090277464,5.2405939,2523.4,2523.3,1.43613462]
[1725090278167,5.2405939,2523.4,2523.3,0.58520288]
[1725090279068,8.4483939,2523.4,2523.3,0.58520288]
[1725090281964,5.2405939,2523.4,2523.3,0.58520288]
[1725090282179,8.4483939,2523.4,2523.3,0.58520288]
[1725090282583,0.27741,2523.2,2523.1,0.3829]
[1725090282872,0.27741,2523.2,2523.1,1.81906984]
[1725090285775,0.27741,2523.2,2523.1,0.3829]
[1725090285969,0.27741,2523.2,2523.1,1.8190728]
[1725090289267,0.27741,2523.2,2523.1,1.8190598]
[1725090290266,5.24061,2523.2,2523.1,1.8190598]
[1725090290469,9.84196672,2523.2,2523.1,1.8190598]
[1725090291382,10.53548672,2523.2,2523.1,1.8190598]
[1725090292477,10.53548672,2523.2,2523.1,1.23384363]
[1725090292674,13.74328672,2523.2,2523.1,0.3829]
[1725090292871,13.74328672,2523.2,2523.1,1.8191262]
[1725090294874,13.74328672,2523.2,2523.1,0.58524171]
[1725090295783,0.27742,2523.1,2523.0,0.7388]
[1725090296176,0.27742,2523.1,2523.0,2.17505291]
[1725090297676,3.48522,2523.1,2523.0,2.17505291]
[1725090298384,5.17877,2523.1,2523.0,2.17505291]
[1725090298584,5.17877,2523.1,2523.0,2.17505316]
[1725090299284,5.17877,2523.1,2523.0,0.7388]
[1725090299486,5.17877,2523.1,2523.0,2.17505325]
[1725090300588,5.17877,2523.1,2523.0,1.32405212]
[1725090300982,5.47862653,2523.1,2523.0,1.32405212]
[1725090301485,5.47862653,2523.1,2523.0,0.7388]
[1725090301687,5.47862653,2523.1,2523.0,1.32405887]
[1725090303586,2.27082653,2523.1,2523.0,1.32405887]
[1725090303778,5.47862653,2523.1,2523.0,1.32405887]
[1725090306293,5.17877,2523.1,2523.0,0.7388]
[1725090307893,13.67709531,2523.1,2523.0,0.7388]
[1725090309689,10.76430182,2523.1,2523.0,0.7388]
[1725090309989,13.97210182,2523.1,2523.0,0.7388]
[1725090312298,13.67709531,2523.1,2523.0,0.7388]
[1725090316291,10.46929531,2523.1,2523.0,0.7388]
[1725090316600,13.67709531,2523.1,2523.0,0.7388]
[1725090317798,10.46929531,2523.1,2523.0,0.7388]
[1725090318001,13.67709531,2523.1,2523.0,0.7388]
[1725090318706,10.46929531,2523.1,2523.0,0.7388]
[1725090318891,13.67709531,2523.1,2523.0,0.7388]
[1725090323694,12.98354531,2523.1,2523.0,0.7388]
[1725090323899,12.98354531,2523.1,2523.0,1.32403882]
[1725090324099,11.98354531,2523.1,2523.0,1.32403882]
[1725090324296,11.98354531,2523.1,2523.0,0.7388]
[1725090326905,8.77574531,2523.1,2523.0,0.7388]
[1725090327707,11.98354531,2523.1,2523.0,0.7388]
[1725090329000,11.98354531,2523.1,2523.0,1.32405178]
[1725090329199,11.98354531,2523.1,2523.0,1.32405179]
[1725090332602,7.74292531,2523.1,2523.0,5.28725179]
[1725090332803,3.9e-06,2523.4,2523.3,0.2774]
[1725090333005,3.9e-06,2523.4,2523.3,3.10506676]
[1725090333196,3.9e-06,2523.4,2523.3,15.66952712]
[1725090333396,3.9e-06,2523.4,2523.3,7.96934121]
[1725090333597,3.9e-06,2523.4,2523.3,5.39933881]
[1725090335522,3.9e-06,2523.4,2523.3,5.39880108]
[1725090335705,3.9e-06,2523.4,2523.3,5.39878418]
[1725090335904,3.9e-06,2523.4,2523.3,5.66429132]
[1725090336112,3.9e-06,2523.4,2523.3,6.51492035]
[1725090336404,3.9e-06,2523.4,2523.3,5.66429132]
[1725090336603,3.9e-06,2523.4,2523.3,6.79227376]
[1725090337206,3.9e-06,2523.4,2523.3,5.94169132]
[1725090338609,3.9e-06,2523.4,2523.3,5.3567]
[1725090338811,3.9e-06,2523.4,2523.3,5.94170397]
[1725090340205,3.9e-06,2523.4,2523.3,6.79222937]
[1725090341410,3.9e-06,2523.4,2523.3,5.94170397]
[1725090344613,3.9e-06,2523.4,2523.3,6.94170397]
[1725090345317,3.9e-06,2523.4,2523.3,12.94161997]
[1725090348721,3.9e-06,2523.4,2523.3,12.94154219]
[1725090352017,3.9e-06,2523.4,2523.3,6.3567]
[1725090352221,3.9e-06,2523.4,2523.3,6.94148823]
[1725090355524,3.9e-06,2523.4,2523.3,6.94148035]
[1725090355910,3.9e-06,2523.4,2523.3,7.63498035]
[1725090356116,3.9e-06,2523.4,2523.3,8.48516306]
[1725090356318,3.9e-06,2523.4,2523.3,8.48515195]
[1725090356717,3.9e-06,2523.4,2523.3,7.63498035]
[1725090357222,3.9e-06,2523.4,2523.3,8.48516272]
[1725090357420,3.9e-06,2523.4,2523.3,7.63498035]
[1725090360518,3.9e-06,2523.4,2523.3,8.48510272]
[1725090361126,3.9e-06,2523.4,2523.3,7.0502]
[1725090361425,3.9e-06,2523.4,2523.3,8.48496817]
[1725090364321,3.9e-06,2523.4,2523.3,13.0502]
[1725090364617,3.9e-06,2523.4,2523.3,14.48489689]
[1725090365226,3.9e-06,2523.4,2523.3,8.48489689]
[1725090365727,3.9e-06,2523.4,2523.3,14.48489689]
[1725090367727,3.9e-06,2523.4,2523.3,13.0502]
[1725090367931,3.9e-06,2523.4,2523.3,14.48494616]
[1725090371131,3.9e-06,2523.4,2523.3,14.48490662]
[1725090374236,3.9e-06,2523.4,2523.3,14.87601839]
[1725090374438,3.9e-06,2523.4,2523.3,14.87593909]
[1725090375434,3.9e-06,2523.4,2523.3,15.91397356]
[1725090377232,3.9e-06,2523.4,2523.3,16.53276187]
[1725090377440,3.9e-06,2523.4,2523.3,18.51454054]
[1725090377828,3.9e-06,2523.4,2523.3,16.07001729]
[1725090378035,3.9e-06,2523.4,2523.3,11.07991307]
[1725090378338,3.9e-06,2523.4,2523.3,12.5145401]
[1725090378535,3.9e-06,2523.4,2523.3,13.0356982]
[1725090378733,3.9e-06,2523.4,2523.3,14.42294061]
[1725090379639,3.9e-06,2523.4,2523.3,14.42293716]
[1725090380642,3.9e-06,2523.4,2523.3,20.49764996]
[1725090380840,3.9e-06,2523.4,2523.3,20.49451632]
[1725090381051,3.9e-06,2523.4,2523.3,19.05988929]
[1725090381342,3.9e-06,2523.4,2523.3,20.4941515]
[1725090382334,3.9e-06,2523.4,2523.3,14.4941515]
[1725090382549,3.9e-06,2523.4,2523.3,20.4941515]
[1725090382735,3.9e-06,2523.4,2523.3,14.49411137]
[1725090383447,3.9e-06,2523.4,2523.3,12.93805244]
[1725090383647,3.9e-06,2523.4,2523.3,14.49442434]
[1725090384441,3.9e-06,2523.4,2523.3,20.49466689]
[1725090384638,3.9e-06,2523.4,2523.3,12.93811176]
[1725090384849,3.9e-06,2523.4,2523.3,14.49465281]
[1725090385050,3.9e-06,2523.4,2523.3,12.93811176]
[1725090385253,3.9e-06,2523.4,2523.3,18.93811176]
[1725090385437,3.9e-06,2523.4,2523.3,12.93811176]
[1725090385637,3.9e-06,2523.4,2523.3,18.93811176]
[1725090385952,3.9e-06,2523.4,2523.3,12.93811176]
[1725090386150,3.9e-06,2523.4,2523.3,18.93811176]
[1725090386440,3.9e-06,2523.4,2523.3,12.93811176]
[1725090387349,3.9e-06,2523.4,2523.3,18.93811176]
[1725090387545,3.9e-06,2523.4,2523.3,12.93811176]
[1725090387947,3.9e-06,2523.4,2523.3,12.54706881]
[1725090388243,3.9e-06,2523.4,2523.3,12.93809994]
[1725090388446,3.9e-06,2523.4,2523.3,17.50371265]
[1725090388651,3.9e-06,2523.4,2523.3,18.93806234]
[1725090389551,3.9e-06,2523.4,2523.3,21.01684552]
[1725090390350,3.9e-06,2523.4,2523.3,18.93806234]
[1725090390545,3.9e-06,2523.4,2523.3,21.01684552]
[1725090391444,3.9e-06,2523.4,2523.3,19.58236204]
[1725090391649,3.9e-06,2523.4,2523.3,15.01622008]
[1725090392044,3.9e-06,2523.4,2523.3,18.9374369]
[1725090392551,3.9e-06,2523.4,2523.3,19.03447739]
[1725090392747,3.9e-06,2523.4,2523.3,24.97973649]
[1725090393053,0.7179,2523.7,2523.6,0.27736]
[1725090393238,0.7179,2523.7,2523.6,4.75823818]
[1725090393439,0.7179,2523.7,2523.6,2.70595996]
[1725090393636,0.7179,2523.7,2523.6,5.14237859]
[1725090394450,0.7179,2523.7,2523.6,2.69952078]
[1725090394749,0.7179,2523.7,2523.6,5.14236572]
[1725090394944,0.7179,2523.7,2523.6,3.09036229]
[1725090395149,0.7179,2523.7,2523.6,5.14239053]
[1725090395347,0.7179,2523.7,2523.6,7.81747962]
[1725090396649,0.7179,2523.7,2523.6,7.81736382]
[1725090398856,0.7179,2523.7,2523.6,8.33624422]
[1725090399352,0.7179,2523.7,2523.6,7.81739618]
[1725090399555,0.7179,2523.7,2523.6,7.81748952]
[1725090400448,0.7179,2523.7,2523.6,8.33624422]
[1725090400755,0.7179,2523.7,2523.6,6.77960304]
[1725090401351,0.7179,2523.7,2523.6,8.33624422]
[1725090401561,0.7179,2523.7,2523.6,5.89349027]
[1725090401859,0.7179,2523.7,2523.6,8.33614465]
[1725090402360,0.7179,2523.7,2523.6,7.95174465]
[1725090402755,0.7179,2523.7,2523.6,7.95174659]
[1725090403253,0.7179,2523.7,2523.6,9.33890451]
[1725090403461,0.373,2523.8,2523.7,0.97074]
[1725090403758,0.373,2523.8,2523.7,16.16962024]
[1725090403963,0.373,2523.8,2523.7,16.52542024]
[1725090404558,0.373,2523.8,2523.7,12.64073563]
[1725090404758,0.373,2523.8,2523.7,13.33412563]
[1725090404954,0.373,2523.8,2523.7,10.92822605]
[1725090407262,0.373,2523.8,2523.7,11.54660495]
[1725090407463,0.373,2523.8,2523.7,11.5464783]
[1725090407764,0.373,2523.8,2523.7,10.9280994]
[1725090408165,0.373,2523.8,2523.7,9.10367274]
[1725090408355,0.373,2523.8,2523.7,8.80113841]
[1725090408554,0.373,2523.8,2523.7,10.85326951]
[1725090408863,0.373,2523.8,2523.7,10.85320714]
[1725090410272,0.373,2523.8,2523.7,9.46611159]
[1725090411574,0.373,2523.8,2523.7,7.02312482]
[1725090411867,0.373,2523.8,2523.7,9.46646371]
[1725090412460,0.373,2523.8,2523.7,9.46647094]
[1725090413568,0.373,2523.8,2523.7,7.9100505]
[1725090413766,0.373,2523.8,2523.7,6.96588489]
[1725090413969,0.373,2523.8,2523.7,7.91005515]
[1725090414165,0.373,2523.8,2523.7,8.45139753]
[1725090414470,0.373,2523.8,2523.7,8.94726912]
[1725090415367,0.373,2523.8,2523.7,8.94725698]
[1725090416469,0.373,2523.8,2523.7,5.73945698]
[1725090417374,0.373,2523.8,2523.7,5.73946119]
[1725090418568,0.373,2523.8,2523.7,4.88951772]
[1725090418758,0.373,2523.8,2523.7,5.73882293]
[1725090421066,0.373,2523.8,2523.7,3.29630451]
[1725090421362,0.373,2523.8,2523.7,3.75704525]
[1725090422571,0.373,2523.8,2523.7,5.7386381]
[1725090423771,0.373,2523.8,2523.7,3.75704525]
[1725090424271,0.97074,2523.7,2523.6,1.55642044]
[1725090424581,0.97074,2523.7,2523.5,2.07529461]
[1725090424582,0.27736,2523.6,2523.5,2.07529461]
[1725090424767,4.23976,2523.6,2523.5,2.65991766]
[1725090424967,10.23976,2523.6,2523.5,2.65991766]
[1725090425469,11.23976,2523.6,2523.5,2.07529461]
[1725090425665,4.23976,2523.6,2523.5,2.65984486]
[1725090425973,10.23976,2523.6,2523.5,2.65984486]
[1725090428075,10.23976,2523.6,2523.5,0.58455025]
[1725090428872,4.23976,2523.6,2523.5,0.58455025]
[1725090429069,0.27737,2523.5,2523.4,0.00594424]
[1725090429269,4.61367,2523.5,2523.4,0.59046537]
[1725090430372,4.61367,2523.5,2523.4,0.00594424]
[1725090430677,4.61367,2523.5,2523.4,0.59048145]
[1725090430863,4.61367,2523.5,2523.4,0.00594424]
[1725090431467,0.27742,2523.1,2522.9,3.99213001]
[1725090431668,4.22933,2523.0,2522.8,2.07536556]
[1725090432163,8.19333,2523.0,2522.8,2.07536556]
[1725090433164,0.27744,2522.9,2522.8,2.07536556]
[1725090433477,4.24144,2522.9,2522.8,2.07536556]
[1725090433779,0.27746,2522.8,2522.6,0.00594424]
[1725090434166,4.24146,2522.8,2522.6,0.00594424]
[1725090438186,0.27746,2522.8,2522.6,0.00594424]
[1725090439279,3.85835,2522.9,2522.6,0.28341424]
[1725090439687,0.27745,2522.8,2522.6,0.71724424]
[1725090441584,0.27746,2522.7,2522.6,0.00594424]
[1725090441880,9.59525494,2522.7,2522.6,0.00594424]
[1725090442271,15.59525494,2522.7,2522.6,0.00594424]
[1725090443988,18.80305494,2522.7,2522.6,0.00594424]
[1725090444179,12.80305494,2522.7,2522.6,0.00594424]
[1725090447086,13.17445494,2522.7,2522.6,0.00594424]
[1725090454788,13.86811494,2522.7,2522.6,0.00594424]
[1725090457397,16.73511494,2522.7,2522.6,0.00594424]
[1725090457598,13.86811494,2522.7,2522.6,0.00594424]
[1725090457794,16.73511494,2522.7,2522.6,0.00594424]
[1725090457990,13.17445494,2522.7,2522.6,0.00594424]
[1725090458200,16.04145494,2522.7,2522.6,0.00594424]
[1725090459496,12.83365494,2522.7,2522.6,0.00594424]
[1725090460197,16.04145494,2522.7,2522.6,0.00594424]
[1725090468003,12.80305494,2522.7,2522.6,0.00594424]
[1725090468310,11.70605494,2522.7,2522.6,0.72054424]
[1725090468511,15.67005494,2522.7,2522.6,1.10774424]
[1725090469210,12.18479494,2522.7,2522.6,1.38521424]
[1725090469399,1.0,2523.0,2522.8,0.27745]
[1725090469606,2.867,2522.9,2522.8,0.27745]
[1725090476316,2.867,2522.9,2522.8,0.86255838]
[1725090481019,2.867,2522.9,2522.8,1.71332178]
[1725090481613,2.867,2522.9,2522.8,0.86255838]
[1725090482015,2.867,2522.9,2522.8,1.71336377]
[1725090482518,2.867,2522.9,2522.8,0.86255838]
[1725090482817,2.867,2522.9,2522.8,1.71334401]
[1725090483010,2.867,2522.9,2522.8,0.86255838]
[1725090483819,2.867,2522.9,2522.8,0.27745]
[1725090484015,2.867,2522.9,2522.8,0.86252006]
[1725090486114,2.867,2522.9,2522.8,1.71331542]
[1725090486631,4.49115424,2523.2,2523.0,0.27742]
[1725090486925,4.49115424,2523.2,2523.1,0.7343]
[1725090488618,4.49115424,2523.2,2523.1,1.1046]
[1725090489021,4.49115424,2523.2,2523.1,1.38202]
[1725090489223,4.21374424,2523.2,2523.1,1.38202]
[1725090490127,1.00594424,2523.2,2523.1,1.38202]
[1725090491031,0.00594424,2523.2,2523.1,6.9303074]
[1725090491628,0.00594424,2523.2,2523.1,7.78089447]
[1725090491831,0.00594424,2523.2,2523.1,6.78089447]
[1725090492223,0.00594424,2523.2,2523.1,5.9303074]
[1725090492525,0.00594424,2523.2,2523.1,5.6528874]
[1725090492719,0.00594424,2523.2,2523.1,1.5968074]
[1725090493725,0.28335424,2523.2,2522.9,0.27743]
[1725090494228,0.3587,2523.1,2523.0,0.58507052]
[1725090500825,0.3587,2523.1,2522.9,0.27743]
[1725090501036,0.3587,2523.1,2523.0,0.58504233]
[1725090501933,0.3587,2523.1,2523.0,0.86247233]
[1725090503024,0.28335424,2523.2,2523.1,0.27742]
[1725090503226,0.00594424,2523.2,2523.1,0.27742]
[1725090505231,0.37434424,2523.2,2523.1,0.27742]
[1725090506528,0.37434424,2523.2,2523.1,0.86218914]
[1725090506732,0.37434424,2523.2,2523.1,0.27742]
[1725090508336,0.37434424,2523.2,2523.1,0.86219653]
[1725090508929,0.00594424,2523.2,2523.1,0.86219653]
[1725090511143,0.00594424,2523.2,2523.1,0.86216625]
[1725090514337,0.00594424,2523.2,2523.1,0.27742]
[1725090514543,0.00594424,2523.2,2523.1,0.86217424]
[1725090515450,0.00594424,2523.2,2523.1,1.71248924]
[1725090517749,0.00594424,2523.2,2523.1,1.71242013]
[1725090521151,0.00594424,2523.2,2523.1,0.27742]
[1725090521355,0.00594424,2523.2,2523.1,1.71236457]
[1725090524656,0.00594424,2523.2,2523.1,0.27742]
[1725090524855,0.00594424,2523.2,2523.1,1.71215278]
[1725090530360,0.00594424,2523.2,2523.1,5.67535278]
[1725090530551,0.00594424,2523.2,2523.1,6.06651242]
[1725090531247,0.00594424,2523.2,2523.1,6.44301242]
[1725090531457,0.00594424,2523.2,2523.1,4.61712]
[1725090531653,0.00594424,2523.2,2523.1,6.44257771]
[1725090534968,0.00594424,2523.2,2523.1,4.61712]
[1725090535267,0.00594424,2523.2,2523.1,6.44240188]
[1725090535860,0.00594424,2523.2,2523.1,6.82650188]
[1725090536562,0.00594424,2523.2,2523.1,7.21400188]
[1725090538170,0.00594424,2523.2,2523.1,7.21419822]
[1725090541661,0.00594424,2523.2,2523.1,7.21418683]
[1725090543461,0.00594424,2523.2,2523.1,2.20956683]
[1725090543672,0.00594424,2523.2,2523.1,1.43433903]
[1725090543673,5.24655424,2523.2,2523.1,1.43433903]
[1725090543870,5.60505424,2523.2,2523.1,0.5844641]
[1725090546972,8.81285424,2523.2,2523.1,0.5844641]
[1725090547573,7.53544424,2523.2,2523.1,0.5844641]
[1725090547760,3.57224424,2523.2,2523.1,0.8618841]
[1725090547959,3.57224424,2523.2,2523.1,1.71206212]
[1725090550165,3.21374424,2523.2,2523.1,1.71209983]
[1725090553579,3.21374424,2523.2,2523.1,1.71204155]
[1725090556674,0.00594424,2523.2,2523.1,1.71204155]
[1725090556879,3.21374424,2523.2,2523.1,1.71204155]
[1725090557475,0.00594424,2523.2,2523.1,7.75996314]
[1725090557679,0.00594424,2523.2,2523.1,7.06638485]
[1725090560187,0.00594424,2523.2,2523.1,7.06597909]
[1725090561871,0.00594424,2523.2,2523.1,7.83217909]
[1725090563294,0.00594424,2523.2,2523.1,6.00682]
[1725090563583,0.00594424,2523.2,2523.1,7.83218022]
[1725090564182,0.00594424,2523.2,2523.1,3.86898022]
[1725090564688,0.00594424,2523.2,2523.1,13.83218022]
[1725090564887,0.00594424,2523.2,2523.1,14.87062868]
[1725090565081,0.00594424,2523.2,2523.1,13.83218022]
[1725090565976,0.00594424,2523.2,2523.1,13.83216649]
[1725090566776,0.00594424,2523.2,2523.1,14.18436649]
[1725090566979,0.00594424,2523.2,2523.1,12.35902]
[1725090567176,0.00594424,2523.2,2523.1,14.18433064]
[1725090568187,0.00594424,2523.2,2523.1,10.22113064]
[1725090569086,3.5636,2523.6,2523.5,0.27737]
[1725090569287,3.5636,2523.6,2523.5,1.71159267]
[1725090569787,3.5636,2523.6,2523.5,2.07519267]
[1725090570494,3.5636,2523.6,2523.5,0.64097]
[1725090570693,3.5636,2523.6,2523.5,2.07496308]
[1725090570889,3.5636,2523.6,2523.5,1.49063711]
[1725090571087,3.5636,2523.6,2523.5,2.07498072]
[1725090571285,3.5636,2523.6,2523.5,1.2253031]
[1725090571585,3.5636,2523.6,2523.5,0.8617031]
[1725090572283,3.5636,2523.6,2523.5,0.5843331]
[1725090572784,3.5636,2523.6,2523.5,0.8617031]
[1725090573295,3.5636,2523.6,2523.5,0.86179092]
[1725090574190,4.84096,2523.6,2523.5,0.58446752]
[1725090574493,0.27737,2523.5,2523.2,0.3656]
[1725090574685,0.64027,2523.5,2523.3,1.43445027]
[1725090574895,0.64027,2523.5,2523.4,0.58451019]
[1725090575183,0.3629,2523.5,2523.4,0.86189128]
[1725090575891,0.3629,2523.5,2523.4,0.8618904]
[1725090576992,0.7463,2523.5,2523.4,0.8618904]
[1725090577500,1.02367,2523.5,2523.4,0.8618904]
[1725090577900,1.02367,2523.5,2523.4,0.27738]
[1725090578193,1.02367,2523.5,2523.4,0.86188848]
[1725090578382,0.7463,2523.5,2523.4,0.86188848]
[1725090579397,0.7463,2523.5,2523.4,1.71179088]
[1725090580503,0.7463,2523.5,2523.4,0.86188848]
[1725090581198,0.7463,2523.5,2523.4,0.27738]
[1725090581402,0.7463,2523.5,2523.4,0.86187133]
[1725090585709,1.02367,2523.5,2523.4,0.86187133]
[1725090590405,1.02367,2523.5,2523.4,0.58449133]
[1725090591502,1.02367,2523.5,2523.4,0.58452296]
[1725090592306,1.02367,2523.5,2523.4,1.43448102]
[1725090592907,1.02367,2523.5,2523.4,1.43449337]
[1725090594613,0.27738,2523.4,2523.3,0.27739]
[1725090594801,0.27738,2523.4,2523.3,1.71187009]
[1725090595113,0.27738,2523.4,2523.3,1.43448009]
[1725090597916,0.27738,2523.4,2523.3,0.58452227]
[1725090598116,0.2774,2523.3,2523.2,0.3656]
[1725090598413,0.27739,2523.4,2523.2,1.80032394]
[1725090598616,0.27739,2523.4,2523.3,1.43472394]
[1725090600813,0.27739,2523.4,2523.2,0.3656]
[1725090601014,0.27739,2523.4,2523.3,0.85010656]
[1725090601203,0.27739,2523.4,2523.3,1.43472864]
[1725090601805,0.2774,2523.3,2523.2,0.3656]
[1725090602004,0.6578,2523.3,2523.2,1.80030722]
[1725090605407,1.27739,2523.4,2523.2,2.07771722]
[1725090605603,1.27739,2523.4,2523.3,1.43470722]
[1725090606015,5.24059,2523.4,2523.3,1.43470722]
[1725090607212,5.24059,2523.4,2523.3,1.43459536]
[1725090610420,0.2774,2523.3,2523.2,0.3656]
[1725090610724,0.2774,2523.3,2523.2,1.80027908]
[1725090611112,0.6363,2523.3,2523.2,1.80027908]
[1725090611309,1.3298,2523.3,2523.2,1.80027908]
[1725090611515,17.16821059,2523.3,2523.2,0.58460239]
[1725090611716,0.27744,2522.9,2522.8,1.1006]
[1725090611918,5.17885,2522.9,2522.8,0.58491197]
[1725090612216,5.17885,2522.9,2522.6,0.00594424]
[1725090612217,0.27746,2522.7,2522.6,0.00594424]
[1725090612412,1.27746,2522.7,2522.6,0.59102242]
[1725090612612,5.24146,2522.7,2522.6,0.59102242]
[1725090613320,5.24146,2522.7,2522.6,0.00594424]
[1725090622125,8.44926,2522.7,2522.6,0.00594424]
[1725090622526,5.24146,2522.7,2522.6,0.00594424]
[1725090622928,8.44926,2522.7,2522.6,0.00594424]
[1725090624933,5.24146,2522.7,2522.6,0.00594424]
[1725090625130,8.44926,2522.7,2522.6,0.00594424]
[1725090626433,0.27751,2522.3,2522.1,3.99213001]
[1725090626622,0.27751,2522.3,2522.2,0.3606]
[1725090626827,0.27753,2522.1,2522.0,0.7637]
[1725090627924,0.27752,2522.2,2522.0,0.7637]
[1725090631228,1.28345424,2522.3,2522.0,0.7637]
[1725090631833,0.28345424,2522.3,2522.0,1.04124]
[1725090632234,0.00594424,2522.3,2522.0,1.04124]
[1725090632629,0.00594424,2522.3,2522.1,0.27753]
[1725090633035,0.00594424,2522.3,2522.2,0.3539]
[1725090633432,3.97074424,2522.3,2522.2,0.3539]
[1725090635128,3.97074424,2522.3,2522.2,0.63142]
[1725090635329,0.00594424,2522.3,2522.2,0.63142]